[Event "Early-Titled-Tuesday-Blitz-January-30-2024"]
[Site "Chess.com"]
[Date "2024.01.30"]
[Round "7"]
[White "ilqar_74"]
[Black "HajiyevKanan"]
[Result "1-0"]
[WhiteElo "2841"]
[BlackElo "2575"]
[TimeControl "180+1"]
[EndTime "9:21:19 PST"]
[Termination "ilqar_74 won by resignation"]

1. e4 {[%clk 0:03:00.9]} 1... c6 {[%clk 0:02:59.6]} 2. Nc3 {[%clk 0:03:00.4]}
2... d5 {[%clk 0:03:00.5]} 3. Nf3 {[%clk 0:03:01.2]} 3... a6 {[%clk 0:03:00.5]}
4. d4 {[%clk 0:03:01.3]} 4... Bg4 {[%clk 0:03:00.4]} 5. Be2 {[%clk 0:03:01.4]}
5... e6 {[%clk 0:02:58.9]} 6. O-O {[%clk 0:03:01.5]} 6... Nf6 {[%clk 0:02:59.4]}
7. exd5 {[%clk 0:03:01.4]} 7... cxd5 {[%clk 0:02:59.5]} 8. Ne5 {[%clk 0:03:02]}
8... Bxe2 {[%clk 0:02:59.8]} 9. Nxe2 {[%clk 0:03:02.9]} 9... Nc6 {[%clk
0:03:00.4]} 10. f4 {[%clk 0:03:03]} 10... Bd6 {[%clk 0:02:53.8]} 11. c3 {[%clk
0:03:02.8]} 11... O-O {[%clk 0:02:53.5]} 12. Ng3 {[%clk 0:03:02.5]} 12... Qc7
{[%clk 0:02:53.6]} 13. Kh1 {[%clk 0:03:02.1]} 13... b5 {[%clk 0:02:52.5]} 14. a3
{[%clk 0:03:01.7]} 14... a5 {[%clk 0:02:52.4]} 15. Be3 {[%clk 0:03:00.9]} 15...
b4 {[%clk 0:02:52.6]} 16. cxb4 {[%clk 0:03:00.4]} 16... axb4 {[%clk 0:02:53.5]}
17. Rc1 {[%clk 0:03:00.1]} 17... Ra6 {[%clk 0:02:33.5]} 18. axb4 {[%clk
0:02:30.4]} 18... Qb7 {[%clk 0:02:16.3]} 19. Qe2 {[%clk 0:02:19]} 19... Rb6
{[%clk 0:02:02.6]} 20. Nxc6 {[%clk 0:02:01.7]} 20... Rxc6 {[%clk 0:02:02.4]} 21.
Rxc6 {[%clk 0:02:01.9]} 21... Qxc6 {[%clk 0:02:03.3]} 22. Rc1 {[%clk 0:02:00.4]}
22... Qb6 {[%clk 0:02:00.8]} 23. b5 {[%clk 0:02:00.1]} 23... Rb8 {[%clk
0:01:56.4]} 24. Rc6 {[%clk 0:01:57.2]} 24... Qd8 {[%clk 0:01:56.6]} 25. h3
{[%clk 0:01:41.6]} 25... h6 {[%clk 0:01:55.3]} 26. Bd2 {[%clk 0:01:32.2]} 26...
Ne8 {[%clk 0:01:37.9]} 27. Qd3 {[%clk 0:01:28]} 27... Qh4 {[%clk 0:01:35.3]} 28.
Ne2 {[%clk 0:01:15.2]} 28... Qf2 {[%clk 0:01:25.4]} 29. b6 {[%clk 0:01:06.9]}
29... Qf1+ {[%clk 0:01:19.7]} 30. Kh2 {[%clk 0:01:07]} 30... g5 {[%clk
0:01:19.4]} 31. Rc1 {[%clk 0:00:59.8]} 31... Qf2 {[%clk 0:01:13.5]} 32. Be3
{[%clk 0:00:57.2]} 32... Qh4 {[%clk 0:01:02.7]} 33. g3 {[%clk 0:00:51.4]} 33...
Qh5 {[%clk 0:01:03.2]} 34. Rc6 {[%clk 0:00:50.5]} 34... Qf3 {[%clk 0:01:01.6]}
35. Ng1 {[%clk 0:00:46.9]} 35... Qh5 {[%clk 0:00:59.6]} 36. Qe2 {[%clk
0:00:38.6]} 36... Qg6 {[%clk 0:00:56.6]} 37. Qc2 {[%clk 0:00:37.7]} 37... Qxc2+
{[%clk 0:00:54.7]} 38. Rxc2 {[%clk 0:00:38.1]} 38... gxf4 {[%clk 0:00:52.9]} 39.
gxf4 {[%clk 0:00:37.1]} 39... Rxb6 {[%clk 0:00:51.8]} 40. Kg2 {[%clk 0:00:37.5]}
40... Nf6 {[%clk 0:00:47.9]} 41. Ne2 {[%clk 0:00:35.7]} 41... Ne4 {[%clk
0:00:48]} 42. Kf3 {[%clk 0:00:32]} 42... Kg7 {[%clk 0:00:47.3]} 43. Nc3 {[%clk
0:00:32.1]} 43... Rc6 {[%clk 0:00:37.2]} 44. Rg2+ {[%clk 0:00:31.9]} 44... Kf6
{[%clk 0:00:33.7]} 45. Nxe4+ {[%clk 0:00:32.2]} 45... dxe4+ {[%clk 0:00:34.6]}
46. Kxe4 {[%clk 0:00:33.1]} 46... Rc4 {[%clk 0:00:32.5]} 47. Kd3 {[%clk
0:00:30.4]} 47... Rb4 {[%clk 0:00:33]} 48. Rc2 {[%clk 0:00:27.7]} 48... Rb5
{[%clk 0:00:32.1]} 49. Ke4 {[%clk 0:00:25.2]} 49... h5 {[%clk 0:00:31.2]} 50.
Rc6 {[%clk 0:00:24.5]} 50... Ke7 {[%clk 0:00:26.4]} 51. Rc2 {[%clk 0:00:25]}
51... Kf6 {[%clk 0:00:26.6]} 52. Bd2 {[%clk 0:00:23.8]} 52... Rb3 {[%clk
0:00:25.7]} 53. Bc3 {[%clk 0:00:23.5]} 53... Rb5 {[%clk 0:00:25.8]} 54. d5+
{[%clk 0:00:23]} 54... Ke7 {[%clk 0:00:22.8]} 55. dxe6 {[%clk 0:00:23.6]} 55...
Kxe6 {[%clk 0:00:20.9]} 56. Rd2 {[%clk 0:00:23]} 56... f5+ {[%clk 0:00:21]} 57.
Kf3 {[%clk 0:00:23.3]} 57... Rb3 {[%clk 0:00:16.8]} 58. Re2+ {[%clk 0:00:21.3]}
58... Kd5 {[%clk 0:00:16.7]} 59. Rd2+ {[%clk 0:00:21.4]} 59... Ke6 {[%clk
0:00:16.9]} 60. Rd3 {[%clk 0:00:22]} 60... Bb4 {[%clk 0:00:13.5]} 61. Re3+
{[%clk 0:00:21.6]} 61... Kd5 {[%clk 0:00:11.5]} 62. Kg3 {[%clk 0:00:11.8]} 62...
Bxc3 {[%clk 0:00:11.2]} 63. bxc3 {[%clk 0:00:12.5]} 63... Kd6 {[%clk 0:00:10.5]}
64. Kh4 {[%clk 0:00:12.8]} 64... Ra3 {[%clk 0:00:04.5]} 65. Kxh5 {[%clk
0:00:13]} 65... Ra4 {[%clk 0:00:04.5]} 66. Kg5 {[%clk 0:00:13.1]} 66... Ra5
{[%clk 0:00:05.2]} 67. h4 {[%clk 0:00:13]} 67... Ra8 {[%clk 0:00:03.9]} 68. Kxf5
{[%clk 0:00:13.1]} 68... Rh8 {[%clk 0:00:04.4]} 69. Kg4 {[%clk 0:00:13.4]} 69...
Rg8+ {[%clk 0:00:04.9]} 70. Kf3 {[%clk 0:00:13.9]} 70... Rh8 {[%clk 0:00:05.3]}
71. Kg3 {[%clk 0:00:14.4]} 71... Rg8+ {[%clk 0:00:05.7]} 72. Kh3 {[%clk
0:00:15]} 72... Rh8 {[%clk 0:00:06.6]} 73. Rf3 {[%clk 0:00:15.3]} 73... Ke6
{[%clk 0:00:06.3]} 74. f5+ {[%clk 0:00:15.8]} 74... Kf6 {[%clk 0:00:07]} 75. c4
{[%clk 0:00:16.1]} 75... Rc8 {[%clk 0:00:07.2]} 76. Rf4 {[%clk 0:00:16.2]} 76...
Ke5 {[%clk 0:00:06]} 77. Kg3 {[%clk 0:00:16.7]} 77... Kf6 {[%clk 0:00:05.7]} 78.
Kf3 {[%clk 0:00:16.1]} 78... Ra8 {[%clk 0:00:05.3]} 79. h5 {[%clk 0:00:15.8]}
79... Rh8 {[%clk 0:00:05.7]} 80. Kg4 {[%clk 0:00:15.6]} 80... Rg8+ {[%clk
0:00:05.7]} 81. Kh4 {[%clk 0:00:16.1]} 81... Rh8 {[%clk 0:00:06]} 82. c5 {[%clk
0:00:15.4]} 82... Ke5 {[%clk 0:00:06.4]} 83. Rf1 {[%clk 0:00:14.5]} 83... Kf6
{[%clk 0:00:07.1]} 84. c6 {[%clk 0:00:13.8]} 84... Rc8 {[%clk 0:00:07.7]} 85.
Rc1 {[%clk 0:00:14.2]} 85... Kxf5 {[%clk 0:00:08]} 86. c7 {[%clk 0:00:14.4]}
86... Kf4 {[%clk 0:00:07.3]} 87. h6 {[%clk 0:00:13.7]} 87... Kf5 {[%clk
0:00:07.7]} 88. Kh5 {[%clk 0:00:13.8]} 88... Kf6 {[%clk 0:00:08.4]} 89. Rc6+
{[%clk 0:00:13.2]} 89... Kf7 {[%clk 0:00:09.2]} 90. Kg5 {[%clk 0:00:13.3]} 90...
Rg8+ {[%clk 0:00:08.1]} 91. Kf5 {[%clk 0:00:13.6]} 91... Rc8 {[%clk 0:00:09]}
92. h7 {[%clk 0:00:13.1]} 92... Kg7 {[%clk 0:00:05.1]} 93. Ke6 {[%clk
0:00:13.4]} 93... Kxh7 {[%clk 0:00:05.2]} 94. Kd7 {[%clk 0:00:13.9]} 94... Rg8
{[%clk 0:00:05.7]} 95. c8=Q {[%clk 0:00:14.2]} 1-0

[Event "Early-Titled-Tuesday-Blitz-January-30-2024"]
[Site "Chess.com"]
[Date "2024.01.30"]
[Round "7"]
[White "Jumbo"]
[Black "blitzking1729"]
[Result "1-0"]
[WhiteElo "2933"]
[BlackElo "2704"]
[TimeControl "180+1"]
[EndTime "9:21:26 PST"]
[Termination "Jumbo won by resignation"]

1. d4 {[%clk 0:03:00.9]} 1... d5 {[%clk 0:02:59.6]} 2. Nf3 {[%clk 0:03:00.3]}
2... Nf6 {[%clk 0:02:59.5]} 3. c4 {[%clk 0:03:00.2]} 3... c6 {[%clk 0:02:59.4]}
4. Qb3 {[%clk 0:02:59.3]} 4... dxc4 {[%clk 0:02:59.1]} 5. Qxc4 {[%clk
0:03:00.2]} 5... Bf5 {[%clk 0:02:58.1]} 6. g3 {[%clk 0:02:59.3]} 6... e6 {[%clk
0:02:57.8]} 7. Bg2 {[%clk 0:02:59.6]} 7... Nbd7 {[%clk 0:02:57.9]} 8. O-O {[%clk
0:02:59.9]} 8... Be7 {[%clk 0:02:58.6]} 9. e3 {[%clk 0:03:00.2]} 9... O-O {[%clk
0:02:59.1]} 10. Qe2 {[%clk 0:02:59.8]} 10... a5 {[%clk 0:02:49.6]} 11. Rd1
{[%clk 0:02:50.6]} 11... a4 {[%clk 0:02:49.2]} 12. Bd2 {[%clk 0:02:36.8]} 12...
Qb6 {[%clk 0:02:38.5]} 13. Be1 {[%clk 0:02:34]} 13... Rfe8 {[%clk 0:02:34.2]}
14. Na3 {[%clk 0:02:31.5]} 14... Bf8 {[%clk 0:02:31.7]} 15. Nc4 {[%clk
0:02:23.8]} 15... Qa6 {[%clk 0:02:31.4]} 16. Bf1 {[%clk 0:02:02.9]} 16... Bg4
{[%clk 0:02:14.4]} 17. h3 {[%clk 0:02:00.2]} 17... Bh5 {[%clk 0:02:11.3]} 18. a3
{[%clk 0:01:42.3]} 18... Nb6 {[%clk 0:01:52]} 19. Na5 {[%clk 0:01:33.1]} 19...
Qxe2 {[%clk 0:01:43.9]} 20. Bxe2 {[%clk 0:01:34]} 20... Ra7 {[%clk 0:01:43.6]}
21. g4 {[%clk 0:01:33.6]} 21... Bg6 {[%clk 0:01:43.4]} 22. Ne5 {[%clk
0:01:34.1]} 22... Rea8 {[%clk 0:01:33]} 23. Nxg6 {[%clk 0:01:29.2]} 23... hxg6
{[%clk 0:01:33.9]} 24. Nc4 {[%clk 0:01:29.6]} 24... Nxc4 {[%clk 0:01:32.5]} 25.
Bxc4 {[%clk 0:01:30.5]} 25... Bd6 {[%clk 0:01:25.2]} 26. Rac1 {[%clk 0:01:27.6]}
26... Rd8 {[%clk 0:01:24.5]} 27. Be2 {[%clk 0:01:02.4]} 27... Bc7 {[%clk
0:01:23.9]} 28. Rc4 {[%clk 0:00:58.8]} 28... Rda8 {[%clk 0:01:15.5]} 29. Kg2
{[%clk 0:00:53.3]} 29... Ne4 {[%clk 0:01:03.6]} 30. f3 {[%clk 0:00:24.7]} 30...
Nd6 {[%clk 0:01:01.4]} 31. Rc2 {[%clk 0:00:25.3]} 31... Ba5 {[%clk 0:01:01.2]}
32. Bg3 {[%clk 0:00:25.6]} 32... Rd8 {[%clk 0:00:59.2]} 33. e4 {[%clk
0:00:21.7]} 33... Bb6 {[%clk 0:00:56.6]} 34. d5 {[%clk 0:00:22.1]} 34... exd5
{[%clk 0:00:35.8]} 35. exd5 {[%clk 0:00:21.8]} 35... c5 {[%clk 0:00:35.7]} 36.
Bd3 {[%clk 0:00:20]} 36... Raa8 {[%clk 0:00:34.7]} 37. Re1 {[%clk 0:00:20.2]}
37... Kf8 {[%clk 0:00:34]} 38. Rce2 {[%clk 0:00:19.2]} 38... Ba5 {[%clk
0:00:31.7]} 39. Rc1 {[%clk 0:00:16.3]} 39... Rac8 {[%clk 0:00:30.3]} 40. Rec2
{[%clk 0:00:15.5]} 40... b6 {[%clk 0:00:25.3]} 41. Rd1 {[%clk 0:00:15.7]} 41...
Kg8 {[%clk 0:00:23.9]} 42. h4 {[%clk 0:00:15.1]} 42... c4 {[%clk 0:00:24.1]} 43.
Bxd6 {[%clk 0:00:12.8]} 43... cxd3 {[%clk 0:00:23.2]} 44. Rxc8 {[%clk
0:00:12.8]} 44... Rxc8 {[%clk 0:00:24.1]} 45. Rxd3 {[%clk 0:00:13]} 45... Rc2+
{[%clk 0:00:24.7]} 46. Kh3 {[%clk 0:00:12]} 46... Rxb2 {[%clk 0:00:24.4]} 47.
Be7 {[%clk 0:00:12.7]} 47... Rb3 {[%clk 0:00:18.6]} 48. Rd1 {[%clk 0:00:11.6]}
48... b5 {[%clk 0:00:16.9]} 49. Kg3 {[%clk 0:00:09.7]} 49... f6 {[%clk
0:00:14.3]} 50. d6 {[%clk 0:00:09.5]} 50... Kf7 {[%clk 0:00:14.8]} 51. g5 {[%clk
0:00:08.6]} 51... f5 {[%clk 0:00:14.2]} 52. h5 {[%clk 0:00:04.1]} 52... gxh5
{[%clk 0:00:09.2]} 53. g6+ {[%clk 0:00:04.2]} 53... Ke6 {[%clk 0:00:07.7]} 54.
Kf4 {[%clk 0:00:02.5]} 54... Kd7 {[%clk 0:00:06.9]} 55. Bf8 {[%clk 0:00:02.4]}
55... Bc3 {[%clk 0:00:05.7]} 56. Kxf5 {[%clk 0:00:02.3]} 56... Bf6 {[%clk
0:00:05.6]} 57. Be7 {[%clk 0:00:01.7]} 57... Bxe7 {[%clk 0:00:05.4]} 58. dxe7+
{[%clk 0:00:02.4]} 58... Kxe7 {[%clk 0:00:06.3]} 59. f4 {[%clk 0:00:02.7]} 59...
Rxa3 {[%clk 0:00:06.6]} 60. Re1+ {[%clk 0:00:02.5]} 60... Kd6 {[%clk 0:00:07]}
61. Re6+ {[%clk 0:00:03.1]} 61... Kd7 {[%clk 0:00:07.5]} 62. Rb6 {[%clk
0:00:03.8]} 62... Rb3 {[%clk 0:00:06.7]} 63. Rb7+ {[%clk 0:00:04.4]} 63... Kc6
{[%clk 0:00:07]} 64. Rxg7 {[%clk 0:00:05]} 64... a3 {[%clk 0:00:07.6]} 65. Ra7
{[%clk 0:00:05.5]} 65... Kb6 {[%clk 0:00:07.4]} 66. Ra8 {[%clk 0:00:04.5]} 66...
b4 {[%clk 0:00:07]} 67. Ke6 {[%clk 0:00:05.1]} 67... Rg3 {[%clk 0:00:07.4]} 68.
f5 {[%clk 0:00:05.7]} 68... h4 {[%clk 0:00:06.8]} 69. Kf7 {[%clk 0:00:06.1]}
69... h3 {[%clk 0:00:07.1]} 70. g7 {[%clk 0:00:06.3]} 70... h2 {[%clk
0:00:06.9]} 71. Rh8 {[%clk 0:00:06.3]} 71... a2 {[%clk 0:00:07.3]} 72. Rxh2
{[%clk 0:00:06.8]} 72... a1=Q {[%clk 0:00:07.6]} 73. Rh6+ {[%clk 0:00:06]} 73...
Kc5 {[%clk 0:00:07.2]} 74. g8=Q {[%clk 0:00:06.3]} 74... Rxg8 {[%clk 0:00:06.4]}
75. Kxg8 {[%clk 0:00:06.8]} 75... Qg1+ {[%clk 0:00:04.7]} 76. Kf7 {[%clk
0:00:06.4]} 76... Qe3 {[%clk 0:00:04.4]} 77. Rh5 {[%clk 0:00:06.1]} 77... Qb3+
{[%clk 0:00:03.8]} 78. Kg7 {[%clk 0:00:05.8]} 78... Qg3+ {[%clk 0:00:03.9]} 79.
Kh6 {[%clk 0:00:06.1]} 79... Qe5 {[%clk 0:00:04]} 80. f6 {[%clk 0:00:05.9]}
80... Qxh5+ {[%clk 0:00:02.1]} 81. Kxh5 {[%clk 0:00:06.8]} 81... b3 {[%clk
0:00:02.7]} 82. f7 {[%clk 0:00:07.3]} 82... b2 {[%clk 0:00:03.2]} 83. f8=Q+
{[%clk 0:00:07.9]} 83... Kc4 {[%clk 0:00:04.1]} 84. Qf1+ {[%clk 0:00:07.1]}
84... Kb3 {[%clk 0:00:04.3]} 85. Qb1 {[%clk 0:00:08]} 1-0

[Event "Early-Titled-Tuesday-Blitz-January-30-2024"]
[Site "Chess.com"]
[Date "2024.01.30"]
[Round "7"]
[White "brm72"]
[Black "Seochesspie"]
[Result "1/2-1/2"]
[WhiteElo "2693"]
[BlackElo "2864"]
[TimeControl "180+1"]
[EndTime "9:21:39 PST"]
[Termination "Game drawn by 50-move rule"]

1. e4 {[%clk 0:03:00.9]} 1... c5 {[%clk 0:02:59.7]} 2. Nf3 {[%clk 0:03:00.9]}
2... Nc6 {[%clk 0:03:00.2]} 3. Bb5 {[%clk 0:03:01]} 3... e6 {[%clk 0:02:59.6]}
4. O-O {[%clk 0:03:00.6]} 4... Nge7 {[%clk 0:02:59.6]} 5. Re1 {[%clk 0:03:01.2]}
5... a6 {[%clk 0:02:59.1]} 6. Bf1 {[%clk 0:03:01.2]} 6... d5 {[%clk 0:02:59.4]}
7. exd5 {[%clk 0:02:59.8]} 7... Nxd5 {[%clk 0:03:00.3]} 8. d4 {[%clk 0:02:59.5]}
8... Nf6 {[%clk 0:03:00.5]} 9. Be3 {[%clk 0:02:36]} 9... Be7 {[%clk 0:02:59.3]}
10. c4 {[%clk 0:02:33.2]} 10... cxd4 {[%clk 0:02:58.2]} 11. Nxd4 {[%clk
0:02:33.2]} 11... Bd7 {[%clk 0:02:58.9]} 12. Nc3 {[%clk 0:02:31.6]} 12... O-O
{[%clk 0:02:59]} 13. h3 {[%clk 0:02:28.5]} 13... Rc8 {[%clk 0:02:56.3]} 14. Qd2
{[%clk 0:02:28.1]} 14... Ne5 {[%clk 0:02:48.9]} 15. b3 {[%clk 0:02:25.4]} 15...
Ng6 {[%clk 0:02:48.5]} 16. Red1 {[%clk 0:02:15.5]} 16... Qc7 {[%clk 0:02:47.1]}
17. Rac1 {[%clk 0:02:14.2]} 17... Rfd8 {[%clk 0:02:47]} 18. Qb2 {[%clk
0:02:12.7]} 18... e5 {[%clk 0:02:37]} 19. Nde2 {[%clk 0:02:09.8]} 19... Qb8
{[%clk 0:02:32.2]} 20. Ng3 {[%clk 0:02:06]} 20... Be6 {[%clk 0:02:31.2]} 21.
Nce4 {[%clk 0:02:00]} 21... Nxe4 {[%clk 0:02:30.9]} 22. Nxe4 {[%clk 0:02:00.9]}
22... h6 {[%clk 0:02:28.3]} 23. Bb6 {[%clk 0:01:59.9]} 23... Rxd1 {[%clk
0:02:27.8]} 24. Rxd1 {[%clk 0:02:00.8]} 24... f5 {[%clk 0:02:24.2]} 25. Nc3
{[%clk 0:01:58]} 25... Rc6 {[%clk 0:02:19.7]} 26. Be3 {[%clk 0:01:49.7]} 26...
Rd6 {[%clk 0:02:17.3]} 27. Qc2 {[%clk 0:01:42.9]} 27... Kh7 {[%clk 0:02:08.2]}
28. g3 {[%clk 0:01:34.6]} 28... e4 {[%clk 0:02:03]} 29. Bg2 {[%clk 0:01:20.5]}
29... Rxd1+ {[%clk 0:02:02.7]} 30. Qxd1 {[%clk 0:01:20.1]} 30... Qe5 {[%clk
0:01:59.8]} 31. Qd4 {[%clk 0:01:17]} 31... Bf6 {[%clk 0:01:56.3]} 32. Qxe5
{[%clk 0:01:08.3]} 32... Nxe5 {[%clk 0:01:55.2]} 33. Ne2 {[%clk 0:01:07.4]}
33... Nd3 {[%clk 0:01:50.8]} 34. Bd4 {[%clk 0:01:03.3]} 34... Be7 {[%clk
0:01:48.5]} 35. g4 {[%clk 0:00:59.6]} 35... g6 {[%clk 0:01:44.9]} 36. gxf5
{[%clk 0:00:56.7]} 36... gxf5 {[%clk 0:01:45]} 37. f3 {[%clk 0:00:55.5]} 37...
exf3 {[%clk 0:01:44.8]} 38. Bxf3 {[%clk 0:00:55.9]} 38... b5 {[%clk 0:01:45.1]}
39. cxb5 {[%clk 0:00:54.4]} 39... axb5 {[%clk 0:01:46]} 40. a4 {[%clk
0:00:52.9]} 40... bxa4 {[%clk 0:01:24.4]} 41. bxa4 {[%clk 0:00:53.8]} 41... Bb4
{[%clk 0:01:24.8]} 42. Bb6 {[%clk 0:00:49.9]} 42... Kg6 {[%clk 0:01:11.9]} 43.
a5 {[%clk 0:00:49]} 43... Bc5+ {[%clk 0:01:12.2]} 44. Kg2 {[%clk 0:00:46.1]}
44... Kf6 {[%clk 0:01:06.8]} 45. Bxc5 {[%clk 0:00:40.8]} 45... Nxc5 {[%clk
0:01:06.8]} 46. Nd4 {[%clk 0:00:41.2]} 46... Bc8 {[%clk 0:01:05]} 47. Kg3 {[%clk
0:00:31.1]} 47... Ke5 {[%clk 0:01:04.9]} 48. Ne2 {[%clk 0:00:30.1]} 48... Nb3
{[%clk 0:01:02.2]} 49. Kh4 {[%clk 0:00:22.7]} 49... Kf6 {[%clk 0:00:57.7]} 50.
Kh5 {[%clk 0:00:20.4]} 50... Kg7 {[%clk 0:00:58]} 51. Ng3 {[%clk 0:00:16.2]}
51... Nxa5 {[%clk 0:00:58.2]} 52. Bd5 {[%clk 0:00:13.7]} 52... f4 {[%clk
0:00:58]} 53. Ne2 {[%clk 0:00:13]} 53... Bxh3 {[%clk 0:00:56.9]} 54. Nxf4 {[%clk
0:00:12.6]} 54... Bf5 {[%clk 0:00:57.1]} 55. Kh4 {[%clk 0:00:12.4]} 55... Kf6
{[%clk 0:00:55.2]} 56. Kh5 {[%clk 0:00:11.9]} 56... Kg7 {[%clk 0:00:55.5]} 57.
Kh4 {[%clk 0:00:11.9]} 57... Bc2 {[%clk 0:00:53.6]} 58. Kh5 {[%clk 0:00:11.8]}
58... Bd1+ {[%clk 0:00:51.4]} 59. Kh4 {[%clk 0:00:12.2]} 59... Kf6 {[%clk
0:00:50.7]} 60. Nh3 {[%clk 0:00:08.5]} 60... Ke5 {[%clk 0:00:48]} 61. Bg2 {[%clk
0:00:08.1]} 61... Nc4 {[%clk 0:00:47]} 62. Kg3 {[%clk 0:00:08.5]} 62... Nd6
{[%clk 0:00:44.7]} 63. Bf3 {[%clk 0:00:08.5]} 63... Bc2 {[%clk 0:00:43.1]} 64.
Nf2 {[%clk 0:00:08.4]} 64... Bf5 {[%clk 0:00:41.1]} 65. Bg4 {[%clk 0:00:07.8]}
65... Bg6 {[%clk 0:00:40.1]} 66. Kh4 {[%clk 0:00:08]} 66... Kf6 {[%clk
0:00:40.3]} 67. Bh5 {[%clk 0:00:08.2]} 67... Bh7 {[%clk 0:00:40.2]} 68. Bg4
{[%clk 0:00:07.9]} 68... Kg7 {[%clk 0:00:40.4]} 69. Bh5 {[%clk 0:00:08.2]} 69...
Nc4 {[%clk 0:00:40.5]} 70. Ng4 {[%clk 0:00:08.4]} 70... Nd2 {[%clk 0:00:38.7]}
71. Nxh6 {[%clk 0:00:08.7]} 71... Kxh6 {[%clk 0:00:38.6]} 72. Be2 {[%clk
0:00:09.3]} 72... Ne4 {[%clk 0:00:38.7]} 73. Bf3 {[%clk 0:00:09.4]} 73... Nf6
{[%clk 0:00:38.9]} 74. Kg3 {[%clk 0:00:09]} 74... Kg5 {[%clk 0:00:39]} 75. Bc6
{[%clk 0:00:09]} 75... Bf5 {[%clk 0:00:39.3]} 76. Bb7 {[%clk 0:00:09]} 76... Bd7
{[%clk 0:00:39.4]} 77. Ba8 {[%clk 0:00:09]} 77... Ne8 {[%clk 0:00:39.5]} 78. Bb7
{[%clk 0:00:08.8]} 78... Nd6 {[%clk 0:00:39.8]} 79. Ba8 {[%clk 0:00:08.7]} 79...
Kf6 {[%clk 0:00:40]} 80. Bd5 {[%clk 0:00:08.9]} 80... Ke5 {[%clk 0:00:40.2]} 81.
Ba8 {[%clk 0:00:09]} 81... Nf5+ {[%clk 0:00:40.3]} 82. Kf2 {[%clk 0:00:08.6]}
82... Nd4 {[%clk 0:00:40.6]} 83. Bb7 {[%clk 0:00:08.6]} 83... Kd6 {[%clk
0:00:40.7]} 84. Ba8 {[%clk 0:00:08.8]} 84... Nb5 {[%clk 0:00:40.3]} 85. Bg2
{[%clk 0:00:08.8]} 85... Kc5 {[%clk 0:00:40.5]} 86. Bh1 {[%clk 0:00:09.3]} 86...
Kd4 {[%clk 0:00:40.8]} 87. Bg2 {[%clk 0:00:09.6]} 87... Nd6 {[%clk 0:00:41.2]}
88. Bh1 {[%clk 0:00:09.9]} 88... Nf7 {[%clk 0:00:41.5]} 89. Bg2 {[%clk
0:00:10.4]} 89... Ne5 {[%clk 0:00:42]} 90. Bh1 {[%clk 0:00:10.8]} 90... Ng4+
{[%clk 0:00:42.1]} 91. Kg3 {[%clk 0:00:11]} 91... Ne3 {[%clk 0:00:42.3]} 92. Ba8
{[%clk 0:00:11.6]} 92... Nf5+ {[%clk 0:00:41.9]} 93. Kf4 {[%clk 0:00:11.4]}
93... Nd6 {[%clk 0:00:42.3]} 94. Bg2 {[%clk 0:00:11.7]} 94... Nc4 {[%clk
0:00:41.5]} 95. Bh1 {[%clk 0:00:12.1]} 95... Ne3 {[%clk 0:00:41.8]} 96. Bf3
{[%clk 0:00:12.5]} 96... Nc2 {[%clk 0:00:42.1]} 97. Bg2 {[%clk 0:00:12.6]} 97...
Nb4 {[%clk 0:00:43]} 98. Bf3 {[%clk 0:00:12.7]} 98... Na6 {[%clk 0:00:43.5]} 99.
Bg2 {[%clk 0:00:13.1]} 99... Nc5 {[%clk 0:00:44.4]} 100. Bf3 {[%clk 0:00:13.1]}
100... Nd3+ {[%clk 0:00:44.8]} 101. Kg3 {[%clk 0:00:13.2]} 101... Ke3 {[%clk
0:00:45.7]} 102. Ba8 {[%clk 0:00:12.8]} 102... Ne5 {[%clk 0:00:45.7]} 103. Bb7
{[%clk 0:00:11.6]} 103... Nf7 {[%clk 0:00:45.9]} 104. Ba8 {[%clk 0:00:11.7]}
104... Nd6 {[%clk 0:00:46.4]} 105. Bd5 {[%clk 0:00:11.1]} 105... Nf5+ {[%clk
0:00:47.3]} 106. Kg2 {[%clk 0:00:08.7]} 106... Ke2 {[%clk 0:00:46.8]} 107. Bf3+
{[%clk 0:00:08.1]} 107... Ke1 {[%clk 0:00:47]} 108. Ba8 {[%clk 0:00:08.7]}
108... Ke2 {[%clk 0:00:46.6]} 109. Bf3+ {[%clk 0:00:08.3]} 109... Ke3 {[%clk
0:00:47.5]} 110. Ba8 {[%clk 0:00:08.8]} 110... Nh4+ {[%clk 0:00:47.8]} 111. Kg3
{[%clk 0:00:09.3]} 111... Nf5+ {[%clk 0:00:48.1]} 112. Kg2 {[%clk 0:00:09.9]}
112... Kf4 {[%clk 0:00:48.7]} 113. Kf2 {[%clk 0:00:10.1]} 113... Ne3 {[%clk
0:00:49.6]} 114. Ke2 {[%clk 0:00:10.2]} 114... Ng4 {[%clk 0:00:49.2]} 115. Kd3
{[%clk 0:00:10.5]} 115... Ne5+ {[%clk 0:00:49.3]} 116. Kd4 {[%clk 0:00:10.5]}
116... Nf7 {[%clk 0:00:49.6]} 117. Bd5 {[%clk 0:00:10.6]} 117... Ng5 {[%clk
0:00:49.5]} 118. Ba8 {[%clk 0:00:10.7]} 118... Nh7 {[%clk 0:00:49.8]} 119. Bd5
{[%clk 0:00:10.7]} 119... Nf6 {[%clk 0:00:50.7]} 120. Ba8 {[%clk 0:00:10.8]}
120... Bf5 {[%clk 0:00:51]} 121. Bb7 {[%clk 0:00:10.7]} 121... Ng4 {[%clk
0:00:51.8]} 1/2-1/2

[Event "Early-Titled-Tuesday-Blitz-January-30-2024"]
[Site "Chess.com"]
[Date "2024.01.30"]
[Round "8"]
[White "bulletteemo"]
[Black "frequentblunders"]
[Result "1-0"]
[WhiteElo "2524"]
[BlackElo "2187"]
[TimeControl "180+1"]
[EndTime "9:23:56 PST"]
[Termination "bulletteemo won by resignation"]

1. e4 {[%clk 0:03:00.9]} 1... e6 {[%clk 0:02:57.6]} 2. d4 {[%clk 0:02:59.2]}
2... c5 {[%clk 0:02:57.7]} 3. Nf3 {[%clk 0:02:57.6]} 3... cxd4 {[%clk
0:02:56.3]} 4. Nxd4 {[%clk 0:02:58.1]} 4... Nf6 {[%clk 0:02:56.6]} 5. Nc3 {[%clk
0:02:56.7]} 5... Nc6 {[%clk 0:02:56.2]} 6. Ndb5 {[%clk 0:02:53.3]} 6... d6
{[%clk 0:02:55.8]} 7. Bf4 {[%clk 0:02:53.5]} 7... e5 {[%clk 0:02:56]} 8. Bg5
{[%clk 0:02:54.2]} 8... Be7 {[%clk 0:02:48.8]} 9. Bxf6 {[%clk 0:02:52]} 9...
gxf6 {[%clk 0:02:49.7]} 10. Nd5 {[%clk 0:02:50.9]} 10... a6 {[%clk 0:02:43.1]}
11. Nbc7+ {[%clk 0:02:48.5]} 1-0

[Event "Early-Titled-Tuesday-Blitz-January-30-2024"]
[Site "Chess.com"]
[Date "2024.01.30"]
[Round "8"]
[White "thesupera12"]
[Black "GAusal"]
[Result "1-0"]
[WhiteElo "2543"]
[BlackElo "2293"]
[TimeControl "180+1"]
[EndTime "9:24:48 PST"]
[Termination "thesupera12 won by resignation"]

1. d4 {[%clk 0:02:41]} 1... d5 {[%clk 0:02:59.5]} 2. Bg5 {[%clk 0:02:40.9]} 2...
c6 {[%clk 0:02:59.5]} 3. e3 {[%clk 0:02:40.9]} 3... h6 {[%clk 0:02:59.8]} 4. Bh4
{[%clk 0:02:40.6]} 4... Qa5+ {[%clk 0:02:57.9]} 5. Qd2 {[%clk 0:02:38.9]} 5...
Qxd2+ {[%clk 0:02:57.9]} 6. Nxd2 {[%clk 0:02:39.8]} 6... Nd7 {[%clk 0:02:57]} 7.
Ngf3 {[%clk 0:02:40.4]} 7... Ngf6 {[%clk 0:02:57.1]} 8. c4 {[%clk 0:02:40.8]}
8... e6 {[%clk 0:02:57.1]} 9. Rc1 {[%clk 0:02:40.2]} 9... Be7 {[%clk 0:02:57.1]}
10. Be2 {[%clk 0:02:40.3]} 10... O-O {[%clk 0:02:56.4]} 11. O-O {[%clk
0:02:40.8]} 11... Re8 {[%clk 0:02:51.7]} 12. a3 {[%clk 0:02:39.5]} 12... Nf8
{[%clk 0:02:51]} 13. h3 {[%clk 0:02:37.8]} 13... Ng6 {[%clk 0:02:50.9]} 14. Bg3
{[%clk 0:02:38.2]} 14... Ne4 {[%clk 0:02:48.9]} 15. Nxe4 {[%clk 0:02:37]} 15...
dxe4 {[%clk 0:02:48.6]} 16. Nd2 {[%clk 0:02:35.6]} 16... f5 {[%clk 0:02:48.6]}
17. c5 {[%clk 0:02:35.2]} 17... Bf6 {[%clk 0:02:46.4]} 18. Nc4 {[%clk
0:02:33.7]} 18... Be7 {[%clk 0:02:44.6]} 19. b4 {[%clk 0:02:32.2]} 19... a6
{[%clk 0:02:43.3]} 20. Nb6 {[%clk 0:02:29.9]} 20... Ra7 {[%clk 0:02:41.9]} 21.
Bb8 {[%clk 0:02:30]} 1-0